fUST/lending_fUST_20250709
["ID","MTS","AMOUNT","RATE_DAILY","PERIOD"]
[370391411,1751992238973,-460.0,0.00019178,2]
[370391412,1751992238983,-1784.73,0.00019178,2]
[370391413,1751992238993,-460.0,0.00019178,2]
[370391414,1751992239004,-460.0,0.00019178,2]
[370391415,1751992239014,-460.0,0.00019178,2]
[370391416,1751992239025,-460.0,0.00019178,2]
[370391417,1751992239034,-587.43,0.00019178,2]
[370391418,1751992239044,-460.0,0.00019178,2]
[370391419,1751992239053,-460.0,0.00019178,2]
[370391420,1751992239063,-460.0,0.00019178,2]
[370391421,1751992239074,-460.0,0.00019178,2]
[370391422,1751992239084,-2716.87,0.00019178,2]
[370391423,1751992239094,-460.0,0.00019178,2]
[370391424,1751992239103,-549.3,0.00019178,2]
[370391425,1751992239114,-629.94,0.00019178,2]
[370391426,1751992239123,-461.84,0.00019178,2]
[370391427,1751992239132,-460.0,0.00019178,2]
[370391428,1751992239142,-460.0,0.00019178,2]
[370391429,1751992239151,-460.0,0.00019178,2]
[370391430,1751992239160,-460.0,0.00019178,2]
[370391431,1751992239171,-184.55,0.00019178,2]
[370391432,1751992239180,-1648.56,0.00019178,2]
[370391433,1751992239189,-469.4,0.00019178,2]
[370391434,1751992239198,-460.0,0.00019178,2]
[370391435,1751992239208,-460.0,0.00019178,2]
[370391436,1751992239217,-460.0,0.00019178,2]
[370391437,1751992239226,-1886.3,0.00019178,2]
[370391438,1751992239235,-460.0,0.00019178,2]
[370391439,1751992239244,-2050.81,0.00019178,2]
[370391440,1751992239254,-460.0,0.00019178,2]
[370391441,1751992239263,-460.0,0.00019178,2]
[370391442,1751992239271,-460.0,0.00019178,2]
[370391443,1751992239280,-460.0,0.00019178,2]
[370391444,1751992239290,-470.98444585,0.00019178,2]
[370391445,1751992239301,-460.0,0.00019178,2]
[370391446,1751992239311,-460.0,0.00019178,2]
[370391447,1751992239320,-460.0,0.00019178,2]
[370391448,1751992239332,-460.0,0.00019178,2]
[370391449,1751992239342,-504.44109194,0.00019178,2]
[370391450,1751992239352,-460.0,0.00019178,2]
[370391451,1751992239362,-896.86,0.00019178,2]
[370391452,1751992239371,-460.0,0.00019178,2]
[370391453,1751992239380,-460.0,0.00019178,2]
[370391454,1751992239390,-460.0,0.00019178,2]
[370391455,1751992239399,-829.92,0.00019178,2]
[370391456,1751992239409,-1118.24,0.00019178,2]
[370391457,1751992239420,-460.0,0.00019178,2]
[370391458,1751992239430,-460.0,0.00019178,2]
[370391459,1751992239439,-460.0,0.00019178,2]
[370391460,1751992239449,-460.0,0.00019178,2]
[370391461,1751992239458,-1411.62,0.00019178,2]
[370391462,1751992239469,-460.0,0.00019178,2]
[370391463,1751992239478,-460.0,0.00019178,2]
[370391464,1751992239487,-460.0,0.00019178,2]
[370391465,1751992239497,-460.0,0.00019178,2]
[370391466,1751992239506,-460.0,0.00019178,2]
[370391467,1751992239515,-460.0,0.00019178,2]
[370391468,1751992239524,-460.0,0.00019178,2]
[370391469,1751992239534,-460.0,0.00019178,2]
[370391470,1751992239543,-460.0,0.00019178,2]
[370391471,1751992239552,-460.0,0.00019178,2]
[370391472,1751992239562,-460.0,0.00019178,2]
[370391473,1751992239572,-460.0,0.00019178,2]
[370391474,1751992239582,-460.0,0.00019178,2]
[370391475,1751992239593,-460.0,0.00019178,2]
[370391476,1751992239603,-460.0,0.00019178,2]
[370391477,1751992239612,-351.176039,0.00019178,2]
[370391478,1751992239622,-460.0,0.00019178,2]
[370391479,1751992239632,-460.0,0.00019178,2]
[370391480,1751992239641,-460.0,0.00019178,2]
[370391481,1751992239651,-460.0,0.00019178,2]
[370391482,1751992239660,-460.0,0.00019178,2]
[370391483,1751992239670,-460.0,0.00019178,2]
[370391484,1751992239679,-460.0,0.00019178,2]
[370391485,1751992239688,-883.03,0.00019178,2]
[370391486,1751992239699,-460.0,0.00019178,2]
[370391487,1751992239708,-179.77342,0.00019178,2]
[370391488,1751992239717,-500.0,0.00019251,2]
[370391489,1751992239727,-500.0,0.00019343,2]
[370391490,1751992239738,-2418.02753041,0.00019352,2]
[370391491,1751992239749,-500.0,0.00019435,2]
[370391492,1751992239758,-325.32,0.00019442,3]
[370391493,1751992239768,-460.0,0.00019452,2]
[370391494,1751992239777,-460.0,0.00019452,2]
[370391495,1751992239786,-460.0,0.00019452,2]
[370391496,1751992239796,-460.0,0.00019452,2]
[370391497,1751992239805,-460.0,0.00019452,2]
[370391498,1751992239815,-460.0,0.00019452,2]
[370391499,1751992239830,-555.27234271,0.00019452,2]
[370391500,1751992239840,-460.0,0.00019452,2]
[370391501,1751992239850,-460.0,0.00019452,2]
[370391502,1751992239859,-460.0,0.00019452,2]
[370391503,1751992239871,-460.0,0.00019452,2]
[370391504,1751992239882,-460.0,0.00019452,2]
[370391505,1751992239891,-460.0,0.00019452,2]
[370391506,1751992239902,-681.56,0.00019452,2]
[370391507,1751992239913,-460.0,0.00019452,2]
[370391508,1751992239924,-460.0,0.00019452,2]
[370391509,1751992239933,-460.0,0.00019452,2]
[370391510,1751992239943,-460.0,0.00019452,2]
[370391511,1751992239954,-460.0,0.00019452,2]
[370391512,1751992239963,-460.0,0.00019452,2]
[370391513,1751992239973,-391.87539649,0.00019452,2]
[370391514,1751992239982,-460.0,0.00019452,2]
[370391515,1751992239992,-460.0,0.00019452,2]
[370391516,1751992240002,-460.0,0.00019452,2]
[370391517,1751992240011,-460.0,0.00019452,2]
[370391518,1751992240021,-460.0,0.00019452,2]
[370391519,1751992240030,-404.27042649,0.00019452,2]
[370391520,1751992240040,-460.0,0.00019452,2]
[370391521,1751992240049,-460.0,0.00019452,2]
[370391522,1751992240059,-460.0,0.00019452,2]
[370391523,1751992240068,-1434.78,0.00019452,2]
[370391525,1751992240077,-460.0,0.00019452,2]
[370391526,1751992240086,-460.0,0.00019452,2]
[370391528,1751992240095,-460.0,0.00019452,2]
[370391530,1751992240106,-460.0,0.00019452,2]
[370391532,1751992240115,-460.0,0.00019452,2]
[370391534,1751992240124,-460.0,0.00019452,2]
[370391535,1751992240134,-460.0,0.00019452,2]
[370391536,1751992240144,-460.0,0.00019452,2]
[370391537,1751992240153,-1457.81,0.00019452,2]
[370391538,1751992240163,-460.0,0.00019452,2]
[370391539,1751992240174,-460.0,0.00019452,2]
[370391541,1751992240183,-1784.73,0.00019452,2]
[370391542,1751992240192,-460.0,0.00019452,2]
[370391544,1751992240202,-460.0,0.00019452,2]
[370391546,1751992240211,-460.0,0.00019452,2]
[370391547,1751992240221,-460.0,0.00019452,2]
[370391548,1751992240230,-587.43,0.00019452,2]
[370391550,1751992240239,-460.0,0.00019452,2]
[370391551,1751992240248,-460.0,0.00019452,2]
[370391552,1751992240257,-460.0,0.00019452,2]
[370391553,1751992240266,-2716.87,0.00019452,2]
[370391554,1751992240276,-549.3,0.00019452,2]
[370391555,1751992240287,-460.0,0.00019452,2]
[370391556,1751992240297,-629.94,0.00019452,2]
[370391557,1751992240306,-461.84,0.00019452,2]
[370391558,1751992240315,-483.25057906,0.00019452,2]
[370391559,1751992240324,-460.0,0.00019452,2]
[370391560,1751992240333,-460.0,0.00019452,2]
[370391561,1751992240343,-1648.56,0.00019452,2]
[370391562,1751992240354,-469.4,0.00019452,2]
[370391563,1751992240364,-460.0,0.00019452,2]
[370391564,1751992240376,-1886.3,0.00019452,2]
[370391565,1751992240387,-460.0,0.00019452,2]
[370391566,1751992240397,-2050.81,0.00019452,2]
[370391567,1751992240407,-460.0,0.00019452,2]
[370391568,1751992240417,-460.0,0.00019452,2]
[370391569,1751992240427,-460.0,0.00019452,2]
[370391570,1751992240437,-460.0,0.00019452,2]
[370391571,1751992240447,-460.0,0.00019452,2]
[370391572,1751992240457,-460.0,0.00019452,2]
[370391573,1751992240466,-460.0,0.00019452,2]
[370391574,1751992240476,-896.86,0.00019452,2]
[370391575,1751992240485,-460.0,0.00019452,2]
[370391576,1751992240495,-460.0,0.00019452,2]
[370391577,1751992240505,-829.92,0.00019452,2]
[370391578,1751992240514,-1118.24,0.00019452,2]
[370391579,1751992240523,-400.0,0.00019452,2]
[370391580,1751992240533,-460.0,0.00019452,2]
[370391581,1751992240543,-460.0,0.00019452,2]
[370391582,1751992240553,-1411.62,0.00019452,2]
[370391583,1751992240563,-460.0,0.00019452,2]
[370391584,1751992240574,-460.0,0.00019452,2]
[370391585,1751992240585,-460.0,0.00019452,2]
[370391586,1751992240595,-460.0,0.00019452,2]
[370391587,1751992240605,-460.0,0.00019452,2]
[370391588,1751992240615,-460.0,0.00019452,2]
[370391589,1751992240624,-460.0,0.00019452,2]
[370391590,1751992240634,-460.0,0.00019452,2]
[370391591,1751992240643,-460.0,0.00019452,2]
[370391592,1751992240653,-460.0,0.00019452,2]
[370391593,1751992240665,-460.0,0.00019452,2]
[370391594,1751992240675,-460.0,0.00019452,2]
[370391595,1751992240684,-460.0,0.00019452,2]
[370391596,1751992240696,-460.0,0.00019452,2]
[370391597,1751992240706,-460.0,0.00019452,2]
[370391598,1751992240715,-883.03,0.00019452,2]
[370391599,1751992240725,-460.0,0.00019452,2]
[370391600,1751992240734,-460.0,0.00019452,2]
[370391601,1751992240744,-460.0,0.00019507,2]
[370391602,1751992240755,-460.0,0.00019507,2]
[370391603,1751992240764,-460.0,0.00019507,2]
[370391604,1751992240773,-706.3,0.00019507,2]
[370391605,1751992240783,-460.0,0.00019507,2]
[370391606,1751992240793,-460.0,0.00019507,2]
[370391607,1751992240803,-460.0,0.00019507,2]
[370391608,1751992240812,-460.0,0.00019507,2]
[370391609,1751992240823,-1246.82,0.00019507,2]
[370391610,1751992240833,-460.0,0.00019507,2]
[370391611,1751992240843,-612.3,0.00019507,2]
[370391612,1751992240853,-938.89,0.00019507,2]
[370391613,1751992240862,-485.05,0.00019507,2]
[370391614,1751992240872,-460.0,0.00019507,2]
[370391615,1751992240881,-2087.06,0.00019507,2]
[370391616,1751992240891,-460.0,0.00019507,2]
[370391617,1751992240900,-862.67,0.00019507,2]
[370391618,1751992240910,-500.0,0.00019527,2]
[370391619,1751992240920,-500.0,0.00019619,2]
[370391620,1751992240930,-500.0,0.00019711,2]
[370391621,1751992240939,-310.71229955,0.00019726,2]
[370391622,1751992240949,-465.54,0.00019726,2]
[370391623,1751992240959,-460.0,0.00019726,2]
[370391624,1751992240968,-460.0,0.00019726,2]
[370391625,1751992240978,-460.0,0.00019726,2]
[370391626,1751992240988,-460.0,0.00019726,2]
[370391627,1751992240997,-460.0,0.00019726,2]
[370391628,1751992241006,-460.0,0.00019726,2]
[370391629,1751992241016,-460.0,0.00019726,2]
[370391630,1751992241025,-460.0,0.00019726,2]
[370391631,1751992241035,-460.0,0.00019726,2]
[370391632,1751992241044,-681.56,0.00019726,2]
[370391633,1751992241054,-460.0,0.00019726,2]
[370391634,1751992241063,-460.0,0.00019726,2]
[370391635,1751992241073,-460.0,0.00019726,2]
[370391636,1751992241082,-460.0,0.00019726,2]
[370391637,1751992241092,-460.0,0.00019726,2]
[370391638,1751992241102,-460.0,0.00019726,2]
[370391639,1751992241112,-460.0,0.00019726,2]
[370391640,1751992241121,-460.0,0.00019726,2]
[370391641,1751992241131,-460.0,0.00019726,2]
[370391642,1751992241140,-460.0,0.00019726,2]
[370391643,1751992241149,-460.0,0.00019726,2]
[370391644,1751992241159,-1434.78,0.00019726,2]
[370391645,1751992241168,-460.0,0.00019726,2]
[370391646,1751992241178,-460.0,0.00019726,2]
[370391647,1751992241188,-460.0,0.00019726,2]
[370391648,1751992241197,-460.0,0.00019726,2]
[370391649,1751992241207,-460.0,0.00019726,2]
[370391650,1751992241216,-1457.81,0.00019726,2]
[370391651,1751992241226,-460.0,0.00019726,2]
[370391652,1751992241235,-460.0,0.00019726,2]
[370391653,1751992241244,-1784.73,0.00019726,2]
[370391654,1751992241254,-460.0,0.00019726,2]
[370391655,1751992241263,-587.43,0.00019726,2]
[370391656,1751992241272,-460.0,0.00019726,2]
[370391657,1751992241281,-460.0,0.00019726,2]
[370391658,1751992241290,-2716.87,0.00019726,2]
[370391659,1751992241300,-549.3,0.00019726,2]
[370391660,1751992241309,-460.0,0.00019726,2]
[370391661,1751992241319,-629.94,0.00019726,2]
[370391662,1751992241328,-461.84,0.00019726,2]
[370391663,1751992241338,-460.0,0.00019726,2]
[370391664,1751992241348,-460.0,0.00019726,2]
[370391665,1751992241357,-1648.56,0.00019726,2]
[370391666,1751992241367,-469.4,0.00019726,2]
[370391667,1751992241375,-1886.3,0.00019726,2]
[370391668,1751992241385,-460.0,0.00019726,2]
[370391669,1751992241394,-2050.81,0.00019726,2]
[370391670,1751992241404,-460.0,0.00019726,2]
[370391671,1751992241413,-460.0,0.00019726,2]
[370391672,1751992241423,-460.0,0.00019726,2]
[370391673,1751992241586,-460.0,0.00019726,2]
[370391674,1751992241597,-460.0,0.00019726,2]
[370391675,1751992241605,-460.0,0.00019726,2]
[370391676,1751992241615,-460.0,0.00019726,2]
[370391677,1751992241625,-896.86,0.00019726,2]
[370391678,1751992241634,-460.0,0.00019726,2]
[370391679,1751992241644,-460.0,0.00019726,2]
[370391680,1751992241653,-829.92,0.00019726,2]
[370391681,1751992241662,-1118.24,0.00019726,2]
[370391682,1751992241673,-460.0,0.00019726,2]
[370391683,1751992241682,-460.0,0.00019726,2]
[370391684,1751992241692,-460.0,0.00019726,2]
[370391685,1751992241701,-1411.62,0.00019726,2]
[370391686,1751992241711,-460.0,0.00019726,2]
[370391687,1751992241720,-460.0,0.00019726,2]
[370391688,1751992241729,-297.33747553,0.00019726,2]
[370391689,1751992241738,-460.0,0.00019726,2]
[370391690,1751992241747,-460.0,0.00019726,2]
[370391691,1751992241757,-460.0,0.00019726,2]
[370391692,1751992241766,-460.0,0.00019726,2]
[370391693,1751992241775,-460.0,0.00019726,2]
[370391694,1751992241784,-460.0,0.00019726,2]
[370391695,1751992241793,-460.0,0.00019726,2]
[370391696,1751992241803,-460.0,0.00019726,2]
[370391697,1751992241813,-460.0,0.00019726,2]
[370391698,1751992241824,-460.0,0.00019726,2]
[370391699,1751992241835,-460.0,0.00019726,2]
[370391700,1751992241844,-883.03,0.00019726,2]
[370391701,1751992241853,-460.0,0.00019726,2]
[370391702,1751992241862,-460.0,0.00019781,2]
[370391703,1751992241873,-267.9336596,0.00019781,2]
[370391704,1751992241882,-706.3,0.00019781,2]
[370391705,1751992241892,-460.0,0.00019781,2]
[370391706,1751992241902,-460.0,0.00019781,2]
[370391707,1751992241912,-460.0,0.00019781,2]
[370391708,1751992241922,-460.0,0.00019781,2]
[370391709,1751992241931,-1246.82,0.00019781,2]
[370391710,1751992241941,-460.0,0.00019781,2]
[370391711,1751992241950,-612.3,0.00019781,2]
[370391712,1751992241960,-938.89,0.00019781,2]
[370391713,1751992241969,-485.05,0.00019781,2]
[370391714,1751992241979,-2087.06,0.00019781,2]
[370391715,1751992241990,-460.0,0.00019781,2]
[370391716,1751992241999,-862.67,0.00019781,2]
[370391717,1751992242009,-500.0,0.00019796,2]
[370391718,1751992242019,-500.0,0.00019804,2]
[370391719,1751992242028,-500.0,0.00019896,2]
[370391720,1751992242037,-2418.02753037,0.000199,2]
[370391721,1751992242047,-1870.0009324,0.000199,2]
[370391722,1751992242056,-317.30170587,0.00019981,2]
[370391723,1751992242066,-500.0,0.00019988,2]
[370391724,1751992242075,-500.0,0.00019989,2]
[370391725,1751992242084,-301.34625041,0.00019989,2]
[370391726,1751992242093,-500.0,0.00019989,2]
[370391727,1751992242103,-500.0,0.00019989,2]
[370391728,1751992242112,-500.0,0.00019989,2]
[370391729,1751992242121,-193.16449952,0.00019989,2]
[370391730,1751992242131,-500.0,0.00019989,2]
[370391731,1751992242140,-500.0,0.00019989,2]
[370391732,1751992242149,-64513.30748,0.00019999,2]
[370391733,1751992242159,-460.0,0.0002,2]
[370391734,1751992242169,-460.0,0.0002,2]
[370391735,1751992242179,-2000.0,0.0002,2]
[370391736,1751992242189,-584.23190981,0.0002,2]
[370391737,1751992242199,-460.0,0.0002,2]
[370391738,1751992242209,-460.0,0.0002,2]
[370391739,1751992242218,-460.0,0.0002,2]
[370391740,1751992242228,-681.56,0.0002,2]
[370391741,1751992242237,-460.0,0.0002,2]
[370391742,1751992242247,-460.0,0.0002,2]
[370391743,1751992242256,-460.0,0.0002,2]
[370391744,1751992242266,-460.0,0.0002,2]
[370391745,1751992242275,-460.0,0.0002,2]
[370391746,1751992242284,-460.0,0.0002,2]
[370391747,1751992242293,-197.16428568,0.0002,2]
[370391748,1751992242303,-460.0,0.0002,2]
[370391749,1751992242312,-460.0,0.0002,2]
[370391750,1751992242321,-460.0,0.0002,2]
[370391751,1751992242331,-1434.78,0.0002,2]
[370391752,1751992242340,-530.99,0.0002,2]
[370391753,1751992242349,-460.0,0.0002,2]
[370391754,1751992242358,-460.0,0.0002,2]
[370391755,1751992242367,-460.0,0.0002,2]
[370391756,1751992242376,-1457.81,0.0002,2]
[370391757,1751992242385,-460.0,0.0002,2]
[370391758,1751992242395,-1784.73,0.0002,2]
[370391759,1751992242404,-460.0,0.0002,2]
[370391760,1751992242413,-587.43,0.0002,2]
[370391761,1751992242423,-460.0,0.0002,2]
[370391762,1751992242433,-460.0,0.0002,2]
[370391763,1751992242442,-2716.87,0.0002,2]
[370391764,1751992242451,-549.3,0.0002,2]
[370391765,1751992242462,-460.0,0.0002,2]
[370391766,1751992242471,-629.94,0.0002,2]
[370391767,1751992242480,-461.84,0.0002,2]
[370391768,1751992242489,-460.0,0.0002,2]
[370391769,1751992242499,-460.0,0.0002,2]
[370391770,1751992242508,-1648.56,0.0002,2]
[370391771,1751992242521,-469.4,0.0002,2]
[370391772,1751992242530,-1886.3,0.0002,2]
[370391773,1751992242540,-460.0,0.0002,2]
[370391774,1751992242550,-2050.81,0.0002,2]
[370391775,1751992242560,-460.0,0.0002,2]
[370391776,1751992242570,-460.0,0.0002,2]
[370391777,1751992242579,-7777.0,0.0002,7]
[370391778,1751992242589,-460.0,0.0002,2]
[370391779,1751992242599,-460.0,0.0002,2]
[370391780,1751992242608,-460.0,0.0002,2]
[370391781,1751992242618,-460.0,0.0002,2]
[370391782,1751992242627,-896.86,0.0002,2]
[370391783,1751992242637,-460.0,0.0002,2]
[370391784,1751992242646,-460.0,0.0002,2]
[370391785,1751992242656,-829.92,0.0002,2]
[370391786,1751992242665,-1118.24,0.0002,2]
[370391787,1751992242676,-460.0,0.0002,2]
[370391788,1751992242685,-460.0,0.0002,2]
[370391789,1751992242695,-460.0,0.0002,2]
[370391790,1751992242704,-460.0,0.0002,2]
[370391791,1751992242714,-1411.62,0.0002,2]
[370391792,1751992242724,-460.0,0.0002,2]
[370391794,1751992242733,-460.0,0.0002,2]
[370391796,1751992242743,-460.0,0.0002,2]
[370391798,1751992242754,-460.0,0.0002,2]
[370391800,1751992242763,-460.0,0.0002,2]
[370391802,1751992242773,-460.0,0.0002,2]
[370391804,1751992242783,-460.0,0.0002,2]
[370391805,1751992242792,-460.0,0.0002,2]
[370391807,1751992242802,-460.0,0.0002,2]
[370391809,1751992242812,-460.0,0.0002,2]
[370391812,1751992242823,-460.0,0.0002,2]
[370391815,1751992242833,-883.03,0.0002,2]
[370391817,1751992242843,-500.0,0.00020008,2]
[370391820,1751992242852,-500.0,0.00020008,2]
[370391823,1751992242862,-500.0,0.00020008,2]
[370391827,1751992242871,-500.0,0.00020008,2]
[370391830,1751992242881,-500.0,0.00020008,2]
[370391833,1751992242891,-460.0,0.00020055,2]
[370391836,1751992242900,-706.3,0.00020055,2]
[370391838,1751992242909,-460.0,0.00020055,2]
[370391839,1751992242920,-460.0,0.00020055,2]
[370391841,1751992242929,-1246.82,0.00020055,2]
[370391843,1751992242938,-460.0,0.00020055,2]
[370391845,1751992242947,-612.3,0.00020055,2]
[370391847,1751992242957,-938.89,0.00020055,2]
[370391848,1751992242966,-485.05,0.00020055,2]
[370391849,1751992242975,-2087.06,0.00020055,2]
[370391850,1751992242984,-460.0,0.00020055,2]
[370391851,1751992242994,-500.0,0.0002008,2]
[370391852,1751992243003,-1870.00093232,0.00020107,2]
[370391853,1751992243012,-500.0,0.00020172,2]
[370391854,1751992243022,-314.231707,0.00020187,2]
[370391855,1751992243032,-500.0,0.00020264,2]
[370391856,1751992243041,-460.0,0.00020273,2]
[370391857,1751992243051,-460.0,0.00020273,2]
[370391858,1751992243060,-460.0,0.00020273,2]
[370391860,1751992243069,-460.0,0.00020273,2]
[370391861,1751992243078,-460.0,0.00020273,2]
[370391862,1751992243088,-681.56,0.00020273,2]
[370391863,1751992243097,-460.0,0.00020273,2]
[370391864,1751992243106,-460.0,0.00020273,2]
[370391865,1751992243116,-460.0,0.00020273,2]
[370391866,1751992243125,-460.0,0.00020273,2]
[370391867,1751992243134,-460.0,0.00020273,2]
[370391868,1751992243144,-460.0,0.00020273,2]
[370391869,1751992243153,-460.0,0.00020273,2]
[370391870,1751992243162,-460.0,0.00020273,2]
[370391871,1751992243172,-460.0,0.00020273,2]
[370391872,1751992243182,-1434.78,0.00020273,2]
[370391874,1751992243191,-487.61,0.00020273,2]
[370391875,1751992243200,-1457.81,0.00020273,2]
[370391876,1751992243209,-460.0,0.00020273,2]
[370391877,1751992243219,-1784.73,0.00020273,2]
[370391878,1751992243228,-460.0,0.00020273,2]
[370391879,1751992243238,-587.43,0.00020273,2]
[370391880,1751992243247,-460.0,0.00020273,2]
[370391881,1751992243257,-460.0,0.00020273,2]
[370391882,1751992243267,-2716.87,0.00020273,2]
[370391883,1751992243276,-549.3,0.00020273,2]
[370391884,1751992243286,-460.0,0.00020273,2]
[370391885,1751992243295,-629.94,0.00020273,2]
[370391886,1751992243305,-461.84,0.00020273,2]
[370391887,1751992243314,-460.0,0.00020273,2]
[370391888,1751992243324,-460.0,0.00020273,2]
[370391889,1751992243333,-1648.56,0.00020273,2]
[370391890,1751992243342,-469.4,0.00020273,2]
[370391891,1751992243351,-1886.3,0.00020273,2]
[370391892,1751992243360,-460.0,0.00020273,2]
[370391893,1751992243370,-2050.81,0.00020273,2]
[370391894,1751992243379,-460.0,0.00020273,2]
[370391895,1751992243388,-460.0,0.00020273,2]
[370391896,1751992243397,-460.0,0.00020273,2]
[370391897,1751992243407,-460.0,0.00020273,2]
[370391898,1751992243416,-460.0,0.00020273,2]
[370391899,1751992243426,-460.0,0.00020273,2]
[370391900,1751992243435,-896.86,0.00020273,2]
[370391901,1751992243445,-460.0,0.00020273,2]
[370391902,1751992243454,-460.0,0.00020273,2]
[370391904,1751992243463,-829.92,0.00020273,2]
[370391906,1751992243473,-1118.24,0.00020273,2]
[370391907,1751992243482,-460.0,0.00020273,2]
[370391908,1751992243492,-460.0,0.00020273,2]
[370391909,1751992243502,-460.0,0.00020273,2]
[370391910,1751992243511,-460.0,0.00020273,2]
[370391911,1751992243520,-1411.62,0.00020273,2]
[370391912,1751992243530,-460.0,0.00020273,2]
[370391913,1751992243539,-460.0,0.00020273,2]
[370391914,1751992243549,-460.0,0.00020273,2]
[370391915,1751992243558,-460.0,0.00020273,2]
[370391916,1751992243567,-460.0,0.00020273,2]
[370391917,1751992243576,-460.0,0.00020273,2]
[370391918,1751992243586,-460.0,0.00020273,2]
[370391919,1751992243595,-460.0,0.00020273,2]
[370391920,1751992243605,-460.0,0.00020273,2]
[370391921,1751992243614,-460.0,0.00020273,2]
[370391922,1751992243623,-883.03,0.00020273,2]
[370391923,1751992243632,-1870.00093232,0.00020314,3]
[370391924,1751992243642,-460.0,0.00020329,2]
[370391925,1751992243651,-706.3,0.00020329,2]
[370391926,1751992243660,-460.0,0.00020329,2]
[370391927,1751992243671,-1246.82,0.00020329,2]
[370391928,1751992243680,-460.0,0.00020329,2]
[370391929,1751992243689,-612.3,0.00020329,2]
[370391930,1751992243699,-938.89,0.00020329,2]
[370391931,1751992243708,-485.05,0.00020329,2]
[370391932,1751992243717,-2087.06,0.00020329,2]
[370391933,1751992243726,-460.0,0.00020329,2]
[370391934,1751992243736,-500.0,0.00020356,2]
[370391935,1751992243745,-1000.0,0.00020392,2]
[370391936,1751992243755,-2529.12,0.00020411,2]
[370391937,1751992243764,-2418.02753037,0.00020448,2]
[370391938,1751992243773,-500.0,0.00020448,2]
[370391939,1751992243783,-5000.0,0.00020468,2]
[370391940,1751992243793,-9275.61508572,0.000205,2]
[370391941,1751992243802,-8000.0,0.00020511,2]
[370391942,1751992243811,-1870.00093232,0.00020521,3]
[370391943,1751992243823,-500.0,0.0002054,2]
[370391944,1751992243833,-460.0,0.00020547,2]
[370391945,1751992243843,-460.0,0.00020547,2]
[370391946,1751992243852,-681.56,0.00020547,2]
[370391947,1751992243861,-460.0,0.00020547,2]
[370391948,1751992243872,-460.0,0.00020547,2]
[370391949,1751992243882,-460.0,0.00020547,2]
[370391950,1751992243893,-460.0,0.00020547,2]
[370391951,1751992243903,-545.34,0.00020547,2]
[370391952,1751992243914,-460.0,0.00020547,2]
[370391953,1751992243924,-460.0,0.00020547,2]
[370391954,1751992243934,-597.74,0.00020547,2]